bitfinex-derivatives/quotes_ETHF0:USTF0_20250627
["timestamp","ask_amount","ask_price","bid_price","bid_amount"]
[1751032429001,6.02283,2423.3,2423.2,26.284]
[1751032429498,6.02283,2423.3,2423.2,27.10906]
[1751032429801,6.02283,2423.3,2423.2,26.284]
[1751032430000,5.1978,2423.3,2423.2,27.10906]
[1751032430601,6.02283,2423.3,2423.2,27.10906]
[1751032430897,5.1978,2423.3,2423.2,27.10906]
[1751032431703,6.02283,2423.3,2423.2,26.284]
[1751032432000,5.1978,2423.3,2423.2,26.282]
[1751032432201,6.02283,2423.3,2423.2,26.282]
[1751032432796,0.8251,2423.1,2423.0,7.9791]
[1751032432996,0.8251,2423.1,2423.0,34.2601]
[1751032433603,1.8763,2423.1,2423.0,34.2601]
[1751032433805,1.8763,2423.1,2423.0,7.9791]
[1751032434100,1.0512,2423.1,2423.0,34.2591]
[1751032435001,1.8763,2423.1,2423.0,34.2591]
[1751032435202,3.2084,2423.1,2423.0,34.2591]
[1751032435504,3.2084,2423.1,2423.0,33.434]
[1751032435697,3.2084,2423.1,2423.0,34.25913]
[1751032436000,2.3833,2423.1,2423.0,34.25913]
[1751032436303,0.82507,2423.2,2423.1,0.8251]
[1751032436502,0.8251,2423.1,2423.0,34.25911]
[1751032436902,0.82508,2423.2,2423.1,0.82509]
[1751032437502,0.8251,2423.1,2423.0,34.25911]
[1751032438207,0.82508,2423.2,2423.1,0.82509]
[1751032438506,5.1978,2423.3,2423.2,0.82506]
[1751032438702,6.02283,2423.3,2423.2,26.275]
[1751032439402,8.53003,2423.3,2423.2,26.275]
[1751032439699,0.82506,2423.2,2423.1,7.154]
[1751032439904,2.28806,2423.2,2423.1,33.428]
[1751032440302,2.28806,2423.2,2423.1,7.154]
[1751032440602,2.28806,2423.2,2423.1,33.427]
[1751032441107,3.43237933,2423.2,2423.1,33.427]
[1751032441405,2.60731933,2423.2,2422.8,7.154]
[1751032441612,0.82516,2422.9,2422.8,7.154]
[1751032441801,0.82516,2422.9,2422.8,33.425]
[1751032442001,2.81508,2423.2,2423.1,0.8251]
[1751032442215,0.8251,2423.1,2423.0,27.09711]
[1751032442401,0.82508,2423.2,2423.0,27.09711]
[1751032442801,1.1507,2423.2,2423.1,0.8251]
[1751032443103,2.29582077,2423.2,2423.1,0.8251]
[1751032443511,1.21242077,2423.2,2423.1,0.8251]
[1751032443901,2.03748077,2423.2,2423.1,0.8251]
[1751032444407,1.21242077,2423.2,2423.1,0.8251]
[1751032444908,2.03748077,2423.2,2423.1,0.8251]
[1751032445607,1.21242077,2423.2,2423.1,0.8251]
[1751032446601,2.03748077,2423.2,2423.1,0.8251]
[1751032446803,1.21242077,2423.2,2423.1,0.8251]
[1751032447212,2.03751077,2423.2,2423.0,26.272]
[1751032447402,0.0673,2423.2,2423.1,0.8251]
[1751032447604,0.8251,2423.1,2423.0,26.272]
[1751032447908,1.97400126,2423.1,2423.0,26.272]
[1751032448208,3.34660126,2423.1,2423.0,26.272]
[1751032448911,0.8252,2422.8,2422.7,3.2078]
[1751032449105,0.8252,2422.8,2422.7,36.6258]
[1751032449303,0.8252,2422.8,2422.7,10.3618]
[1751032449608,0.8252,2422.8,2422.7,33.416]
[1751032449609,1.97530714,2422.8,2422.7,33.416]
[1751032449805,1.97530714,2422.8,2422.7,33.417]
[1751032450112,3.96530714,2422.8,2422.7,33.417]
[1751032450411,15.46074971,2422.8,2422.1,6.7132]
[1751032450709,0.82537,2422.3,2422.2,7.97938]
[1751032450907,0.82536,2422.4,2422.3,0.82537]
[1751032451105,3.2078,2422.6,2422.2,34.24038]
[1751032451106,0.82537,2422.3,2422.2,34.24038]
[1751032451309,1.99,2422.3,2422.2,33.415]
[1751032451610,1.1201,2422.9,2422.2,40.47849]
[1751032451802,1.14952713,2422.8,2422.7,8.14587257]
[1751032452005,1.14952713,2422.8,2422.7,44.00687257]
[1751032452203,1.14952713,2422.8,2422.7,45.09307257]
[1751032453403,3.26436135,2423.2,2422.7,45.09307257]
[1751032453404,2.43927135,2423.2,2423.1,0.8251]
[1751032453607,3.2078,2423.3,2423.2,0.82506]
[1751032453813,3.53037135,2423.5,2423.3,0.82503]
[1751032454008,2.43927135,2423.5,2423.4,27.08299]
[1751032454208,3.26422135,2423.6,2423.4,26.258]
[1751032454413,3.26422135,2423.6,2423.4,27.08299]
[1751032455413,2.43927135,2423.6,2423.5,7.95896]
[1751032455712,5.64707135,2423.7,2423.6,0.82493]
[1751032456106,3.2078,2423.7,2423.6,0.82493]
[1751032456709,3.2078,2423.7,2423.5,7.134]
[1751032456904,3.2078,2423.7,2423.6,0.82493]
[1751032457313,4.3474,2424.0,2423.8,0.82484]
[1751032457518,0.82482,2423.9,2423.8,25.84973105]
[1751032458412,5.17221,2424.0,2423.8,26.67459105]
[1751032459808,1.23483,2423.9,2423.8,25.84973105]
[1751032460112,6.7876,2423.9,2423.2,1.0862]
[1751032460307,0.82498,2423.5,2423.3,34.20602]
[1751032460508,0.82499,2423.5,2423.3,34.20602]
[1751032460711,0.825,2423.4,2423.3,7.134]
[1751032460908,3.3491,2423.4,2423.3,33.38]
[1751032461412,8.5469,2423.4,2423.3,7.134]
[1751032461810,7.7219,2423.4,2423.0,7.134]
[1751032462010,0.8251,2423.1,2423.0,7.134]
[1751032462205,1.1176,2423.3,2423.0,33.378]
[1751032462206,0.82508,2423.2,2423.0,33.378]
[1751032462422,0.8251,2423.1,2423.0,33.378]
[1751032463418,0.8251,2423.1,2423.0,34.20313]
[1751032463618,0.8251,2423.1,2423.0,33.378]
[1751032463819,0.8251,2423.1,2423.0,34.20313]
[1751032464019,0.8251,2423.1,2423.0,33.378]
[1751032464219,0.8251,2423.1,2423.0,34.20313]
[1751032464519,0.8251,2423.1,2423.0,33.378]
[1751032465027,6.3443,2423.4,2423.3,0.82503]
[1751032465313,6.3443,2423.4,2423.2,0.82504]
[1751032466015,7.16932,2423.4,2423.2,0.82504]
[1751032466219,7.16932,2423.4,2423.3,26.24]
[1751032466426,8.31114315,2423.4,2423.3,26.24]
[1751032466715,7.48612315,2423.4,2423.3,26.238]
[1751032466919,8.31112315,2423.4,2423.3,26.238]
[1751032468624,8.31112315,2423.4,2423.3,27.06303]
[1751032468915,8.31112315,2423.4,2422.8,0.82518]
[1751032468916,0.82518,2422.9,2422.8,0.82518]
[1751032469124,4.03298,2422.9,2422.8,26.235]
[1751032470916,0.82523,2422.7,2422.6,7.95925]
[1751032471111,0.82523,2422.7,2422.6,33.366]
[1751032471310,0.82527,2422.6,2422.5,56.657]
[1751032471627,3.6729,2422.8,2422.5,82.889]
[1751032471921,2.81519,2422.9,2422.8,0.8252]
[1751032472123,3.95753123,2422.9,2422.8,27.0582]
[1751032472829,1.14234123,2422.9,2422.8,27.0582]
[1751032473220,1.30804123,2422.9,2422.8,27.0582]
[1751032473426,2.13321123,2422.9,2422.8,27.0582]
[1751032473924,0.99087,2422.9,2422.8,27.0582]
[1751032474226,0.99087,2422.9,2422.8,26.233]
[1751032474425,2.13295379,2422.9,2422.8,26.233]
[1751032474625,3.57715379,2422.9,2422.8,26.233]
[1751032474817,3.57715379,2422.9,2422.8,27.0582]
[1751032475923,2.13295379,2422.9,2422.8,27.0582]
[1751032476424,2.13295379,2422.9,2422.8,26.233]
[1751032477627,2.13295379,2422.9,2422.8,27.0582]
[1751032478628,1.30778379,2422.9,2422.8,27.0582]
[1751032479229,2.13295379,2422.9,2422.8,26.233]
[1751032479434,0.82527,2422.6,2422.5,49.523]
[1751032479733,0.82527,2422.6,2422.5,82.88]
[1751032479921,0.82527,2422.6,2422.5,56.658]
[1751032480120,0.82527,2422.6,2422.5,82.879]
[1751032480533,3.2078,2422.7,2422.6,0.82527]
[1751032482731,3.2078,2422.7,2422.6,27.04327]
[1751032485336,3.2078,2422.7,2422.6,28.47317]
[1751032485928,3.3053,2422.7,2422.6,35.79381257]
[1751032486128,0.0975,2422.7,2422.6,35.79381257]
[1751032486425,5.5128,2423.1,2423.0,0.82513]
[1751032486426,3.2078,2423.1,2423.0,0.82513]
[1751032486627,4.34958103,2423.1,2423.0,41.46777257]
[1751032486827,4.36898103,2423.1,2423.0,41.46777257]
[1751032487133,0.0194,2423.1,2423.0,41.46777257]
[1751032487332,0.0194,2423.1,2423.0,42.91587257]
[1751032487923,3.2078,2423.5,2423.4,0.825]
[1751032488129,4.34977619,2423.5,2423.4,34.144]
[1751032488631,1.98947619,2423.5,2423.4,34.144]
[1751032489032,0.8475,2423.5,2423.4,36.7202]
[1751032489537,0.8475,2423.5,2423.4,35.2721]
[1751032490632,1.67246,2423.5,2423.4,35.2721]
[1751032491032,0.8475,2423.5,2423.4,35.2721]
[1751032491437,0.8475,2423.5,2423.4,42.59274257]
[1751032491744,0.8475,2423.5,2423.4,47.59274257]
[1751032492240,0.8475,2423.5,2423.4,50.80054257]
[1751032492441,0.8475,2423.5,2423.4,45.80054257]
[1751032493239,3.2078,2423.8,2423.7,0.82489]
[1751032493443,4.34764946,2423.8,2423.7,27.02489]
[1751032493937,6.22074946,2423.8,2423.7,27.02489]
[1751032494329,3.01294946,2423.8,2423.7,27.02489]
[1751032494749,1.8731,2423.8,2423.7,27.02489]
[1751032494942,1.8731,2423.8,2423.7,34.34553257]
[1751032495535,1.8731,2423.8,2423.7,27.02489]
[1751032497441,2.69796,2423.8,2423.7,26.2]
[1751032497631,1.8731,2423.8,2423.4,4.3359]
[1751032497836,0.82492,2423.7,2423.5,26.191]
[1751032498038,1.4224,2423.7,2423.5,26.191]
[1751032498336,1.4224,2423.7,2423.6,0.82493]
[1751032498835,1.4224,2423.7,2423.5,27.01594]
[1751032499035,2.24731,2423.7,2423.5,27.01594]
[1751032499238,1.4224,2423.7,2423.6,0.82493]
[1751032499437,1.8731,2423.8,2423.7,0.82489]
[1751032499637,0.82486,2423.8,2423.7,26.184]
[1751032500337,2.81796,2423.8,2423.7,26.184]
[1751032500635,1.9931,2423.8,2423.7,26.184]
[1751032500834,1.9931,2423.8,2423.7,27.00889]
[1751032501344,2.81796,2423.8,2423.7,27.00889]
[1751032501640,1.9931,2423.8,2423.7,27.00889]
[1751032501845,1.9931,2423.8,2423.7,30.21669]
[1751032502036,3.2078,2424.4,2424.2,0.82472]
[1751032502237,5.20568,2424.4,2424.3,26.179]
[1751032502440,6.34277724,2424.4,2424.3,26.179]
[1751032502634,5.51809724,2424.4,2424.3,27.00369]
[1751032502836,4.381,2424.4,2424.3,27.00369]
[1751032503040,3.2078,2424.4,2424.3,27.00369]
[1751032503248,4.34483932,2424.4,2424.3,27.00369]
[1751032503442,5.16948932,2424.4,2424.3,26.179]
[1751032503652,5.16948932,2424.4,2424.3,33.283]
[1751032503838,4.03245,2424.4,2424.3,33.283]
[1751032504246,4.03245,2424.4,2424.3,34.10769]
[1751032504747,2.14603,2424.5,2424.4,0.82465]
[1751032504947,2.14603,2424.5,2424.3,34.10767]
[1751032505244,2.14602,2424.5,2424.3,34.10767]
[1751032505436,1.3214,2424.5,2424.4,0.82465]
[1751032505846,0.82463,2424.5,2424.4,0.82465]
[1751032506243,0.82465,2424.4,2424.3,34.10767]
[1751032506444,0.82465,2424.4,2424.3,33.283]
[1751032507044,0.82465,2424.4,2424.3,34.10769]
[1751032507343,0.82465,2424.4,2424.3,33.283]
[1751032508450,2.82455,2424.4,2424.3,34.10769]
[1751032508746,2.82455,2424.4,2424.3,33.283]
[1751032508949,0.82474,2424.2,2424.1,0.82475]
[1751032509140,0.82474,2424.2,2424.1,34.09475]
[1751032509344,2.26471,2424.3,2424.2,0.82472]
[1751032510148,2.82457,2424.4,2424.3,0.82469]
[1751032510451,2.82457,2424.4,2424.3,26.162]
[1751032510948,2.82457,2424.4,2424.3,26.98669]
[1751032511147,2.82457,2424.4,2424.3,26.162]
[1751032511848,17.52834257,2424.4,2424.0,7.105]
[1751032512045,0.82472,2424.2,2424.1,26.158]
[1751032512241,2.20201,2424.3,2424.2,0.82472]
[1751032512741,6.03237,2424.4,2424.1,26.158]
[1751032512943,5.2077,2424.4,2424.3,0.82469]
[1751032513144,0.82464,2424.5,2424.3,26.153]
[1751032513344,0.82464,2424.5,2424.4,7.105]
[1751032513541,2.82454,2424.5,2424.4,7.105]
[1751032513740,6.03234,2424.5,2424.4,7.105]
[1751032513941,0.82468,2424.4,2424.2,0.8247]
[1751032514152,2.20198,2424.4,2424.3,34.08169]
[1751032514644,2.20198,2424.4,2424.3,33.257]
[1751032514843,2.20198,2424.4,2424.2,0.8247]
[1751032515051,2.20198,2424.4,2424.3,34.04869]
[1751032515253,2.20198,2424.4,2424.3,33.224]
[1751032515849,2.20198,2424.4,2424.3,34.04869]
[1751032516047,2.20198,2424.4,2424.3,33.224]
[1751032516244,2.06173,2424.3,2423.7,3.2078]
[1751032516453,0.82483,2423.9,2423.8,34.04885]
[1751032516654,0.82482,2424.0,2423.9,0.82482]
[1751032516857,4.03257,2424.1,2424.0,0.82479]
[1751032517057,2.4463,2424.2,2424.1,0.82476]
[1751032517259,5.2077,2424.4,2424.1,0.82476]
[1751032517449,3.2078,2424.4,2424.2,34.04471]
[1751032517655,0.82469,2424.3,2424.2,34.04471]
[1751032517954,1.00499,2424.3,2424.2,34.04471]
[1751032518654,1.00499,2424.3,2424.2,34.04472]
[1751032518850,1.00499,2424.3,2424.2,33.22]
[1751032519053,2.39879,2424.3,2424.2,33.22]
[1751032519259,0.82476,2424.1,2424.0,7.89878]
[1751032519552,1.2693,2424.2,2424.1,0.82476]
[1751032519753,0.1803,2424.3,2424.2,0.82472]
[1751032519955,3.2078,2424.4,2424.3,0.82469]
[1751032520451,0.82469,2424.3,2424.2,26.96671]
[1751032520653,1.3803,2424.3,2424.2,26.96671]
[1751032520847,2.52219444,2424.3,2424.2,26.96671]
[1751032521054,3.34688444,2424.3,2424.2,26.142]
[1751032521356,4.61618444,2424.3,2424.2,26.142]
[1751032521547,0.82476,2424.1,2424.0,4.03258]
[1751032521851,0.82476,2424.1,2424.0,7.074]
[1751032521852,4.03256,2424.1,2424.0,7.074]
[1751032522051,0.82488,2423.8,2423.7,0.82486]
[1751032522257,0.82488,2423.8,2423.7,0.82489]
[1751032522459,0.82488,2423.8,2423.7,26.96289]
[1751032523358,2.82478,2423.8,2423.7,26.96289]
[1751032523747,1.9999,2423.8,2423.7,26.96289]
[1751032523945,1.9999,2423.8,2423.7,34.28353257]
[1751032524151,1.1922,2424.0,2423.9,0.82483]
[1751032524446,3.21419685,2424.0,2423.9,26.95983]
[1751032524651,2.02199685,2424.0,2423.9,26.95983]
[1751032524851,0.8793,2424.0,2423.9,26.95983]
[1751032526159,0.8793,2424.0,2423.9,34.28047257]
[1751032526358,0.8793,2424.0,2423.9,40.71547257]
[1751032526661,3.2078,2424.4,2424.3,0.82469]
[1751032526862,4.35142567,2424.4,2424.3,34.03069]
[1751032527266,6.35132567,2424.4,2424.3,35.29719]
[1751032528561,6.35132567,2424.4,2424.3,34.03069]
[1751032530170,7.17598567,2424.4,2424.3,34.03069]
[1751032530359,8.61188567,2424.4,2424.3,34.03069]
[1751032530561,7.78722567,2424.4,2424.3,34.03069]
[1751032531366,0.82473,2424.2,2423.8,3.2078]
[1751032531561,0.82473,2424.2,2424.1,0.82476]
[1751032531764,0.82476,2424.1,2424.0,0.82478]
[1751032531955,4.03256,2424.1,2424.0,26.94678]
[1751032532161,1.4359,2424.2,2424.1,0.82476]
[1751032532162,2.26065,2424.2,2424.1,0.82476]
[1751032532364,2.5806763,2424.2,2424.1,0.82476]
[1751032532762,2.5025,2424.3,2424.2,0.82472]
[1751032532965,3.64682433,2424.3,2424.2,26.94672]
[1751032533266,1.14432433,2424.3,2424.2,26.94672]
[1751032533468,3.2078,2424.4,2424.3,0.82469]
[1751032533669,6.35187459,2424.4,2424.3,7.89869]
[1751032534869,3.14407459,2424.4,2424.3,7.89869]
[1751032535063,3.14407459,2424.4,2424.3,9.23319]
[1751032535968,3.14407459,2424.4,2424.3,50.03319]
[1751032536867,1.9999,2424.4,2424.3,50.03319]
[1751032539570,19.29163813,2425.1,2424.9,0.82445]
[1751032539779,1.14362453,2425.0,2424.9,26.93345]
[1751032539959,1.14362453,2425.0,2424.9,34.25409257]
[1751032540163,3.14352453,2425.0,2424.9,34.25409257]
[1751032541060,3.14352453,2425.0,2424.9,35.67569257]
[1751032541265,1.14362453,2425.0,2424.9,35.67569257]
[1751032541468,3.2078,2425.4,2425.3,0.82435]
[1751032541668,4.35078197,2425.4,2425.3,34.00335]
[1751032541972,4.35078197,2425.4,2425.3,33.179]
[1751032541973,7.17499197,2425.4,2425.3,33.179]
[1751032544177,3.14288197,2425.4,2425.3,34.00335]
[1751032544364,1.9999,2425.4,2425.3,34.00335]
[1751032544674,1.3071,2425.6,2425.5,0.82428]
[1751032544876,2.44800613,2425.6,2425.5,26.92128]
[1751032545172,1.14090613,2425.6,2425.5,26.92128]
[1751032545975,3.2078,2425.7,2425.6,0.82425]
[1751032546275,5.17243364,2425.7,2425.5,26.92126]
[1751032546484,4.03201,2425.7,2425.5,26.097]
[1751032546670,0.82425,2425.6,2425.5,26.92126]
[1751032546874,4.03204,2425.7,2425.5,26.92126]
[1751032547071,3.2078,2425.7,2425.6,0.82425]
[1751032547285,4.34693413,2425.7,2425.6,0.82425]
[1751032547771,1.9999,2425.8,2425.7,0.82421]
[1751032547969,3.2078,2426.0,2425.9,0.82415]
[1751032548171,4.3465309,2426.0,2425.9,26.91315]
[1751032548472,1.9628409,2426.0,2425.9,26.089]
[1751032549575,0.82411,2426.0,2425.9,26.089]
[1751032549968,0.8241,2426.1,2425.9,26.91315]
[1751032550169,0.82411,2426.0,2425.9,26.089]
[1751032550577,2.23451,2426.1,2426.0,0.82411]
[1751032550777,3.37466789,2426.1,2425.9,26.91312]
[1751032550974,2.23451,2426.1,2425.9,26.91312]
[1751032551278,0.82411,2426.0,2425.9,26.91312]
[1751032551682,1.9999,2426.2,2426.1,0.82408]
[1751032551873,3.13893441,2426.2,2426.1,41.26372257]
[1751032552069,1.96307441,2426.2,2426.1,33.119]
[1751032552575,3.29697441,2426.2,2426.1,33.119]
[1751032552771,5.29687441,2426.2,2426.1,33.119]
[1751032553482,4.15784,2426.2,2426.1,33.119]
[1751032553979,5.39397,2426.2,2425.7,3.2078]
[1751032554172,0.82413,2426.0,2425.8,33.116]
[1751032554378,0.82413,2426.0,2425.9,0.82415]
[1751032554680,0.82415,2425.9,2425.8,33.94016]
[1751032554875,3.3338,2426.2,2425.8,33.94016]
[1751032555179,0.82415,2425.9,2425.8,33.94016]
[1751032555378,3.3338,2426.2,2425.8,33.116]
[1751032555771,3.3338,2426.2,2425.9,7.041]
[1751032555974,0.82411,2426.0,2425.9,33.109]
[1751032556274,2.82401,2426.0,2425.9,33.109]
[1751032556778,0.82411,2426.0,2425.9,33.109]
[1751032556971,1.3339,2426.2,2425.9,33.93315]
[1751032557280,0.82411,2426.0,2425.9,33.109]
[1751032557668,4.03191,2426.0,2425.9,33.109]
[1751032557984,4.03191,2426.0,2425.9,33.93315]
[1751032558280,4.03191,2426.0,2425.9,33.109]
[1751032558480,4.03191,2426.0,2425.9,7.041]
[1751032558665,4.03191,2426.0,2425.9,33.105]
[1751032558976,6.03181,2426.0,2425.9,33.105]
[1751032560879,5.2077,2426.0,2425.9,33.92915]
[1751032562679,6.03181,2426.0,2425.9,33.92915]
[1751032562984,5.2077,2426.0,2425.9,33.92915]
[1751032563473,1.9999,2426.0,2425.9,33.92915]
[1751032563672,3.33522,2426.3,2426.1,0.82404]
[1751032563881,3.33522,2426.3,2426.2,26.052]
[1751032564180,3.82542,2426.3,2426.2,26.87604]
[1751032564578,3.82542,2426.3,2426.2,67.67604]
[1751032564579,3.82541,2426.3,2426.2,67.67604]
[1751032564782,3.82541,2426.3,2426.2,66.852]
[1751032565479,3.82541,2426.3,2426.2,67.67604]
[1751032565679,3.82541,2426.3,2426.2,66.852]
[1751032565979,5.25391,2426.3,2426.2,66.852]
[1751032566181,5.25391,2426.3,2426.2,26.052]
[1751032567473,6.39501261,2426.3,2426.2,26.052]
[1751032567680,5.25391,2426.3,2426.2,26.87604]
[1751032567880,5.25391,2426.3,2426.2,26.052]
[1751032568382,6.39537716,2426.3,2426.2,26.052]
[1751032568675,4.4299,2426.3,2426.2,26.87604]
[1751032569377,1.63243197,2426.3,2426.2,26.87604]
[1751032572678,1.14223197,2426.3,2426.2,26.87604]
[1751032574083,1.14223197,2426.3,2426.2,67.67604]
[1751032574280,1.14223197,2426.3,2426.2,71.48045583]
[1751032574486,0.42194,2426.4,2426.2,75.65641583]
[1751032574785,3.25347289,2427.2,2427.1,0.82374]
[1751032574984,3.25347289,2427.4,2427.1,40.08421583]
[1751032575287,1.99,2427.4,2427.2,73.841]
[1751032575482,5.1978,2427.4,2427.3,26.85467]
[1751032575990,5.1978,2427.4,2427.3,26.031]
[1751032576189,6.02144,2427.4,2427.3,26.031]
[1751032576592,0.82367,2427.3,2427.2,40.8]
[1751032576792,3.37827,2427.3,2427.2,73.837]
[1751032577188,3.37827,2427.3,2427.2,40.8]
[1751032577407,3.37827,2427.3,2427.2,73.833]
[1751032577704,3.37827,2427.3,2427.2,73.832]
[1751032578096,2.5546,2427.3,2427.2,73.832]
[1751032578299,3.37827,2427.3,2427.2,73.832]
[1751032578802,3.37827,2427.3,2427.2,74.6557]
[1751032579810,3.37827,2427.3,2427.2,73.832]
[1751032580008,3.37827,2427.3,2427.2,74.6557]
[1751032580411,2.5546,2427.3,2427.2,74.6557]
[1751032581710,3.37827,2427.3,2427.2,74.6557]
[1751032581910,3.37827,2427.3,2427.2,73.832]
[1751032582106,5.1978,2427.4,2427.3,0.82367]
[1751032582506,6.02144,2427.4,2427.3,0.82367]
[1751032583208,5.1978,2427.4,2427.3,0.82367]
[1751032583811,5.1978,2427.4,2427.3,8.12330372]
[1751032584208,0.82359,2427.6,2427.3,7.29963372]
[1751032584413,1.4157,2427.5,2427.4,26.83162]
[1751032584610,2.2393,2427.5,2427.4,26.83162]
[1751032585418,0.82367,2427.3,2427.2,40.8]
[1751032585610,0.82367,2427.3,2427.2,73.81]
[1751032585806,0.82367,2427.3,2427.2,33.01]
[1751032586106,0.82367,2427.3,2427.2,0.8237]
[1751032586310,0.8237,2427.2,2427.1,44.0078]
[1751032586512,0.8237,2427.2,2427.1,77.0168]
[1751032586713,4.17746,2427.4,2427.3,0.82367]
[1751032587016,0.8237,2427.3,2427.2,0.8237]
[1751032587212,0.8237,2427.2,2427.1,40.8]
[1751032587403,3.4585,2427.2,2427.1,66.8]
[1751032587919,3.4585,2427.2,2427.1,26.0]
[1751032588119,4.7831,2427.2,2427.1,26.0]
[1751032588610,6.7731,2427.2,2427.1,26.0]
[1751032589011,6.7731,2427.2,2427.1,26.82374]
[1751032589316,5.9494,2427.2,2427.1,26.82374]
[1751032589518,4.6248,2427.2,2427.1,26.82374]
[1751032590118,5.4485,2427.2,2427.1,26.82374]
[1751032590317,4.6248,2427.2,2427.1,26.82374]
[1751032590720,1.99,2427.2,2427.1,26.82374]
[1751032590916,3.2078,2427.4,2427.3,0.82367]
[1751032591220,3.2078,2427.4,2427.3,34.11630372]
[1751032591520,3.2078,2427.4,2427.3,74.91630372]
[1751032592620,1.99,2427.6,2427.5,0.8236]
[1751032592816,1.99,2427.6,2427.5,33.8196]
[1751032593021,1.99,2427.6,2427.5,41.11923372]
[1751032593320,0.82357,2427.6,2427.5,0.8236]
[1751032593522,3.50747,2427.6,2427.5,74.6186]
[1751032593820,3.50747,2427.6,2427.5,73.795]
[1751032595319,3.50747,2427.6,2427.5,32.993]
[1751032595720,5.49747,2427.6,2427.5,32.993]
[1751032596018,0.8236,2427.5,2427.4,47.807]
[1751032596218,2.2393,2427.5,2427.4,32.99]
[1751032596611,2.2393,2427.5,2427.4,73.79]
[1751032596811,1.4157,2427.5,2427.4,74.61364]
[1751032597208,4.08179,2427.6,2427.5,0.8236]
[1751032597415,3.2582,2427.6,2427.5,0.8236]
[1751032597616,1.99,2427.6,2427.5,8.12323372]
[1751032598616,1.99,2427.6,2427.5,9.32473372]
[1751032599722,3.2078,2427.7,2427.6,0.82357]
[1751032600023,5.1978,2427.7,2427.6,26.80057]
[1751032600821,6.02134,2427.7,2427.5,8.12321372]
[1751032601128,7.36254,2427.7,2427.6,0.82357]
[1751032601317,2.07988,2427.6,2427.5,0.82359]
[1751032601516,5.41108,2427.6,2427.5,33.80059]
[1751032601720,5.41108,2427.6,2427.5,0.82359]
[1751032602013,5.41109,2427.6,2427.5,7.8296]
[1751032602215,5.41109,2427.6,2427.5,33.7996]
[1751032602416,5.41109,2427.6,2427.5,32.976]
[1751032602616,4.5875,2427.6,2427.5,33.7996]
[1751032602823,3.2463,2427.6,2427.5,33.7996]
[1751032603713,1.2563,2427.6,2427.5,33.7996]
[1751032604321,5.1978,2427.7,2427.6,0.82357]
[1751032604719,6.02134,2427.7,2427.6,0.82357]
[1751032605223,7.14794872,2427.7,2427.6,0.82357]
[1751032605522,6.32440872,2427.7,2427.6,0.82357]
[1751032605912,1.99,2427.7,2427.6,0.82357]
[1751032606119,1.99,2427.7,2427.6,33.76057]
[1751032606422,0.8235,2427.8,2427.7,0.82351]
[1751032606614,2.1584,2427.8,2427.7,26.78551]
[1751032606816,0.82354,2427.7,2427.6,0.82355]
[1751032607017,3.3249,2427.8,2427.7,0.82354]
[1751032607224,3.3249,2427.8,2427.7,33.75954]
[1751032607724,1.99,2427.8,2427.7,33.75954]
[1751032610623,4.1367,2427.8,2427.7,33.75954]
[1751032610926,5.26649422,2427.8,2427.7,33.75354]
[1751032611926,4.44297422,2427.8,2427.7,33.75354]
[1751032612532,5.26647422,2427.8,2427.7,33.75354]
[1751032612728,4.44297422,2427.8,2427.7,33.75354]
[1751032612928,5.26647422,2427.8,2427.7,33.75354]
[1751032613128,4.44297422,2427.8,2427.7,33.75354]
[1751032613323,5.26647422,2427.8,2427.7,26.77854]
[1751032613530,0.82358,2427.6,2427.5,0.82358]
[1751032613730,0.82358,2427.6,2427.5,33.74658]
[1751032614031,5.0,2427.6,2427.2,49.432]
[1751032614236,3.2078,2427.4,2427.3,33.74567]
[1751032614530,4.03144,2427.4,2427.3,33.74567]
[1751032614728,5.38934,2427.4,2427.3,33.74567]
[1751032614926,1.2666,2427.5,2427.4,0.82364]
[1751032615130,2.39606902,2427.5,2427.4,8.12327372]
[1751032615330,1.12946902,2427.5,2427.4,8.12327372]
[1751032617331,4.4583,2427.7,2427.6,0.82357]
[1751032617531,5.58825633,2427.7,2427.6,26.76957]
[1751032617730,7.57825633,2427.7,2427.6,26.76957]
[1751032618333,6.32775633,2427.7,2427.6,26.76957]
[1751032618542,3.11995633,2427.7,2427.6,29.97737]
[1751032618730,3.11995633,2427.7,2427.6,31.44217]
[1751032618928,1.12995633,2427.7,2427.6,31.44217]
[1751032620028,1.12995633,2427.7,2427.6,36.44217]
[1751032620234,1.99,2427.9,2427.8,0.8235]
[1751032620436,3.12050074,2427.9,2427.8,41.03613372]
[1751032622233,3.12008379,2427.9,2427.8,41.03613372]
[1751032622422,1.13008379,2427.9,2427.8,41.03613372]
[1751032622628,1.13008379,2427.9,2427.8,42.45703372]
[1751032622827,1.13008379,2427.9,2427.8,35.1574]
[1751032623234,1.13008379,2427.9,2427.8,33.7315]
[1751032623436,1.13008379,2427.9,2427.8,75.9524]
[1751032623728,3.79e-06,2427.9,2427.8,80.9524]
[1751032623935,3.2078,2428.6,2427.8,80.1289]
[1751032624238,4.03103,2428.6,2428.4,0.82327]
[1751032624535,1.3933,2428.5,2428.4,0.82327]
[1751032624742,3.3833,2428.5,2428.4,33.72727]
[1751032625433,3.3833,2428.5,2428.4,33.72527]
[1751032625634,4.20656,2428.5,2428.4,32.902]
[1751032625838,4.20656,2428.5,2428.4,32.901]
[1751032626136,9.20656,2428.5,2428.4,25.926]
[1751032626540,0.8233,2428.4,2428.3,7.79733]